Workbook

Sheet Sector
A1: Sector | B1: Source | C1: 1990 | D1: 1991 | E1: 1992 | F1: 1993 | G1: 1994 | H1: 1995 | I1: 1996 | J1: 1997 | K1: 1998 | L1: 1999 | M1: 2000 | N1: 2001 | O1: 2002 | P1: 2003 | Q1: 2004 | R1: 2005 | S1: 2006 | T1: 2007 | U1: 2008 | V1: 2009 | W1: 2010
A2: Total | B2: Total | C2: =SUM(C3,C19,C28,C33,C34,C39) -> 23458.39721 | D2: =SUM(D3,D19,D28,D33,D34,D39) -> 23894.26176 | E2: =SUM(E3,E19,E28,E33,E34,E39) -> 25774.98701 | F2: =SUM(F3,F19,F28,F33,F34,F39) -> 25192.70703 | G2: =SUM(G3,G19,G28,G33,G34,G39) -> 25453.8417 | H2: =SUM(H3,H19,H28,H33,H34,H39) -> 25562.40488 | I2: =SUM(I3,I19,I28,I33,I34,I39) -> 27064.14041 | J2: =SUM(J3,J19,J28,J33,J34,J39) -> 29107.55496 | K2: =SUM(K3,K19,K28,K33,K34,K39) -> 27465.21579 | L2: =SUM(L3,L19,L28,L33,L34,L39) -> 28928.33393 | M2: =SUM(M3,M19,M28,M33,M34,M39) -> 29778.10223 | N2: =SUM(N3,N19,N28,N33,N34,N39) -> 31796.95614 | O2: =SUM(O3,O19,O28,O33,O34,O39) -> 31922.62923 | P2: =SUM(P3,P19,P28,P33,P34,P39) -> 33266.24687 | Q2: =SUM(Q3,Q19,Q28,Q33,Q34,Q39) -> 32792.02129 | R2: =SUM(R3,R19,R28,R33,R34,R39) -> 34179.63887 | S2: =SUM(S3,S19,S28,S33,S34,S39) -> 34190.88871 | T2: =SUM(T3,T19,T28,T33,T34,T39) -> 33255.30254 | U2: =SUM(U3,U19,U28,U33,U34,U39) -> 34380.13639 | V2: =SUM(V3,V19,V28,V33,V34,V39) -> 31594.7912 | W2: =SUM(W3,W19,W28,W33,W34,W39) -> 31108.0733
A3: Other Sectors | B3: Total | C3: =SUM(C4,C9,C14) -> 2759.869877 | D3: =SUM(D4,D9,D14) -> 2549.935184 | E3: =SUM(E4,E9,E14) -> 2742.168251 | F3: =SUM(F4,F9,F14) -> 2417.062946 | G3: =SUM(G4,G9,G14) -> 2736.211516 | H3: =SUM(H4,H9,H14) -> 2838.852107 | I3: =SUM(I4,I9,I14) -> 2777.092131 | J3: =SUM(J4,J9,J14) -> 2834.800198 | K3: =SUM(K4,K9,K14) -> 2935.250389 | L3: =SUM(L4,L9,L14) -> 3059.204455 | M3: =SUM(M4,M9,M14) -> 3126.733566 | N3: =SUM(N4,N9,N14) -> 3188.005081 | O3: =SUM(O4,O9,O14) -> 3271.045954 | P3: =SUM(P4,P9,P14) -> 3543.791571 | Q3: =SUM(Q4,Q9,Q14) -> 3496.159267 | R3: =SUM(R4,R9,R14) -> 3566.662274 | S3: =SUM(S4,S9,S14) -> 3451.131921 | T3: =SUM(T4,T9,T14) -> 3348.473149 | U3: =SUM(U4,U9,U14) -> 3202.061778 | V3: =SUM(V4,V9,V14) -> 2946.966292 | W3: =SUM(W4,W9,W14) -> 2918.726241
A4: Primary Sector Emissions | B4: Total | C4: 1225.569951 | D4: 1108.68358 | E4: 1222.929707 | F4: 1228.726489 | G4: 1299.792138 | H4: 1374.975748 | I4: 1415.242588 | J4: 1503.650379 | K4: 1554.578718 | L4: 1595.318863 | M4: 1539.479925 | N4: 1554.524852 | O4: 1698.720153 | P4: 1801.253301 | Q4: 1624.089413 | R4: 1797.464443 | S4: 1818.158483 | T4: 1750.690706 | U4: 1657.877328 | V4: 1460.500659 | W4: 1452.25769
A5: Primary Sector Emissions | B5: Coal | C5: 34.67814798 | D5: 33.90437676 | E5: 31.51119977 | F5: 33.22010568 | G5: 64.34420242 | H5: 89.09877293 | I5: 92.31868491 | J5: 81.8601062 | K5: 68.04563477 | L5: 43.63218833 | M5: 52.29288688 | N5: 52.42301068 | O5: 55.92037812 | P5: 49.6152755 | Q5: 47.81433871 | R5: 110.0185091 | S5: 177.518958 | T5: 131.6050139 | U5: 156.2192321 | V5: 76.75592146 | W5: 171.8090345
A6: Primary Sector Emissions | B6: LiquidFuels | C6: 1085.511284 | D6: 968.7540587 | E6: 1088.025641 | F6: 1092.613686 | G6: 1132.793455 | H6: 1179.484557 | I6: 1217.651506 | J6: 1310.812613 | K6: 1380.388106 | L6: 1449.195067 | M6: 1378.067716 | N6: 1391.267541 | O6: 1535.838588 | P6: 1643.448338 | Q6: 1473.237966 | R6: 1579.492647 | S6: 1542.014996 | T6: 1522.754532 | U6: 1414.707706 | V6: 1280.853744 | W6: 1202.374404
A7: Primary Sector Emissions | B7: Gas | C7: 105.3805186 | D7: 106.0251444 | E7: 103.3928664 | F7: 102.8926973 | G7: 102.6544809 | H7: 106.3924182 | I7: 105.2723973 | J7: 110.9776595 | K7: 106.1449769 | L7: 102.4916081 | M7: 109.1193215 | N7: 110.8343005 | O7: 106.9611866 | P7: 108.189688 | Q7: 103.0371082 | R7: 107.953287 | S7: 98.62452917 | T7: 96.33116075 | U7: 86.95038986 | V7: 102.8909932 | W7: 78.07425069
A8: Primary Sector Emissions | B8: Other | C8: 0 | D8: 0 | E8: 0 | F8: 0 | G8: 0 | H8: 0 | I8: 0 | J8: 0 | K8: 0 | L8: 0 | M8: 0 | N8: 0 | O8: 0 | P8: 0 | Q8: 0 | R8: 0 | S8: 0 | T8: 0 | U8: 0 | V8: 0 | W8: 0
A9: Commercial Sector Emissions | B9: Total | C9: 885.3694147 | D9: 874.8711106 | E9: 1020.945216 | F9: 716.7103713 | G9: 949.8479966 | H9: 987.3521341 | I9: 814.0562729 | J9: 781.4039122 | K9: 806.0596247 | L9: 880.8958411 | M9: 920.0816549 | N9: 970.146394 | O9: 943.3124151 | P9: 1082.339224 | Q9: 1162.578861 | R9: 1085.276748 | S9: 949.7201934 | T9: 964.7579828 | U9: 977.8363092 | V9: 843.2468514 | W9: 896.8143729
A10: Commercial Sector Emissions | B10: Coal | C10: 140.3303227 | D10: 143.0120046 | E10: 130.9162053 | F10: 153.4121144 | G10: 149.1290696 | H10: 269.9174597 | I10: 198.5207149 | J10: 183.3958181 | K10: 163.4444241 | L10: 152.456045 | M10: 169.146737 | N10: 239.0514053 | O10: 236.5115905 | P10: 270.0221973 | Q10: 222.1177652 | R10: 168.9305576 | S10: 156.8729513 | T10: 191.5545915 | U10: 210.9064721 | V10: 116.7712877 | W10: 130.4190554
A11: Commercial Sector Emissions | B11: LiquidFuels | C11: 510.6765054 | D11: 500.0712931 | E11: 652.5029215 | F11: 315.8512942 | G11: 537.4557563 | H11: 443.055843 | I11: 331.8193938 | J11: 305.1216692 | K11: 338.8363883 | L11: 410.0561047 | M11: 417.8525195 | N11: 381.6542503 | O11: 346.2685871 | P11: 433.5769713 | Q11: 522.5796569 | R11: 505.3514979 | S11: 399.35963 | T11: 419.1562761 | U11: 428.7590389 | V11: 335.362882 | W11: 397.22777
A12: Commercial Sector Emissions | B12: Gas | C12: 234.3317546 | D12: 231.7479703 | E12: 237.4852298 | F12: 247.4070998 | G12: 263.2233079 | H12: 274.3375664 | I12: 283.6744318 | J12: 292.841975 | K12: 303.7343071 | L12: 318.2906782 | M12: 332.9827414 | N12: 349.32115 | O12: 360.4060053 | P12: 378.6204671 | Q12: 417.8083567 | R12: 410.8485286 | S12: 393.3148733 | T12: 353.8610888 | U12: 337.9847718 | V12: 390.9266553 | W12: 368.981521
A13: Commercial Sector Emissions | B13: Other | C13: 0.03083190603 | D13: 0.03984262933 | E13: 0.04085950911 | F13: 0.0398628 | G13: 0.0398628 | H13: 0.04126500905 | I13: 0.04173241206 | J13: 0.04444990501 | K13: 0.04450525434 | L13: 0.0930132 | M13: 0.099657 | N13: 0.1195884 | O13: 0.1262322 | P13: 0.1195884 | Q13: 0.0730818 | R13: 0.1461636 | S13: 0.1727388 | T13: 0.1860264 | U13: 0.1860264 | V13: 0.1860264 | W13: 0.1860264
A14: Residential Sector Emissions | B14: Total | C14: 648.9305115 | D14: 566.3804939 | E14: 498.2933279 | F14: 471.6260861 | G14: 486.5713809 | H14: 476.5242253 | I14: 547.7932695 | J14: 549.7459069 | K14: 574.6120466 | L14: 582.9897511 | M14: 667.171986 | N14: 663.3338351 | O14: 629.0133866 | P14: 660.1990453 | Q14: 709.4909931 | R14: 683.9210836 | S14: 683.2532447 | T14: 633.0244601 | U14: 566.3481409 | V14: 643.2187814 | W14: 569.6541783
A15: Residential Sector Emissions | B15: Coal | C15: 362.5792614 | D15: 256.6622344 | E15: 150.3451964 | F15: 122.8950746 | G15: 126.5656791 | H15: 124.9077396 | I15: 119.2698024 | J15: 123.9987497 | K15: 129.4781637 | L15: 115.2754451 | M15: 106.9018985 | N15: 70.53144992 | O15: 59.56915666 | P15: 80.74872968 | Q15: 84.58391806 | R15: 85.85078376 | S15: 67.33637104 | T15: 53.83592742 | U15: 35.61545577 | V15: 83.07652655 | W15: 52.56897729
A16: Residential Sector Emissions | B16: LiquidFuels | C16: 44.4038338 | D16: 53.19598413 | E16: 64.34715966 | F16: 63.92250165 | G16: 65.31690899 | H16: 61.73205777 | I16: 125.6690794 | J16: 108.0333442 | K16: 118.7071424 | L16: 121.4959536 | M16: 124.7132158 | N16: 154.2608187 | O16: 152.151559 | P16: 158.1828796 | Q16: 185.6494291 | R16: 196.6472606 | S16: 210.7084409 | T16: 222.1485989 | U16: 183.7136607 | V16: 167.7379707 | W16: 145.1561079
A17: Residential Sector Emissions | B17: Gas | C17: 184.15578 | D17: 198.7306391 | E17: 225.8093356 | F17: 227.0168735 | G17: 236.8971565 | H17: 232.0927916 | I17: 244.028817 | J17: 259.156142 | K17: 268.1007147 | L17: 288.2542139 | M17: 377.8585665 | N17: 381.2664666 | O17: 360.3552643 | P17: 364.4924447 | Q17: 382.5423857 | R17: 344.8489313 | S17: 348.9648375 | T17: 301.1651849 | U17: 291.5900241 | V17: 337.6953281 | W17: 318.0454229
A18: Residential Sector Emissions | B18: Other | C18: 57.7916363 | D18: 57.7916363 | E18: 57.7916363 | F18: 57.7916363 | G18: 57.7916363 | H18: 57.7916363 | I18: 58.82557073 | J18: 58.55767103 | K18: 58.32602591 | L18: 57.96413848 | M18: 57.69830524 | N18: 57.27509989 | O18: 56.93740661 | P18: 56.77499132 | Q18: 56.7152603 | R18: 56.57410798 | S18: 56.24359528 | T18: 55.87474891 | U18: 55.42900032 | V18: 54.708956 | W18: 53.88367023
A19: Transport Emissions | B19: Total | C19: =SUM(C20,C25,C26,C27) -> 8764.10542 | D19: =SUM(D20,D25,D26,D27) -> 8790.026243 | E19: =SUM(E20,E25,E26,E27) -> 9132.434304 | F19: =SUM(F20,F25,F26,F27) -> 9614.236687 | G19: =SUM(G20,G25,G26,G27) -> 10308.91238 | H19: =SUM(H20,H25,H26,H27) -> 10958.82786 | I19: =SUM(I20,I25,I26,I27) -> 11030.39015 | J19: =SUM(J20,J25,J26,J27) -> 11229.88333 | K19: =SUM(K20,K25,K26,K27) -> 11417.5011 | L19: =SUM(L20,L25,L26,L27) -> 11640.36273 | M19: =SUM(M20,M25,M26,M27) -> 12183.07205 | N19: =SUM(N20,N25,N26,N27) -> 12244.70324 | O19: =SUM(O20,O25,O26,O27) -> 12745.31969 | P19: =SUM(P20,P25,P26,P27) -> 13297.25504 | Q19: =SUM(Q20,Q25,Q26,Q27) -> 13611.59097 | R19: =SUM(R20,R25,R26,R27) -> 13665.73786 | S19: =SUM(S20,S25,S26,S27) -> 13811.29196 | T19: =SUM(T20,T25,T26,T27) -> 13946.60367 | U19: =SUM(U20,U25,U26,U27) -> 13969.49271 | V19: =SUM(V20,V25,V26,V27) -> 13779.75747 | W19: =SUM(W20,W25,W26,W27) -> 13913.00215
A20: Transport Emissions | B20: Road – Total | C20: 7542.328334 | D20: 7651.940685 | E20: 7953.838566 | F20: 8304.881019 | G20: 8751.724507 | H20: 9392.739145 | I20: 9521.339221 | J20: 9838.211995 | K20: 10055.61401 | L20: 10253.93465 | M20: 10462.89364 | N20: 10581.55572 | O20: 11136.41718 | P20: 11541.96679 | Q20: 11856.93916 | R20: 11968.61148 | S20: 12180.5183 | T20: 12494.0168 | U20: 12526.77446 | V20: 12384.09849 | W20: 12514.35152
A21: Transport Emissions | B21: Road – Petrol | C21: 5701.393734 | D21: 5723.649825 | E21: 5823.041148 | F21: 5906.478012 | G21: 6096.415017 | H21: 6299.910343 | I21: 6349.245726 | J21: 6518.051773 | K21: 6634.765465 | L21: 6737.801709 | M21: 6673.633582 | N21: 6705.001631 | O21: 6931.563394 | P21: 7197.075525 | Q21: 7458.049202 | R21: 7281.455969 | S21: 7331.645633 | T21: 7449.121401 | U21: 7360.33573 | V21: 7274.198004 | W21: 7313.992693
A22: Transport Emissions | B22: Road – Diesel | C22: 1429.740316 | D22: 1493.452811 | E22: 1732.099466 | F22: 2011.190726 | G22: 2287.419799 | H22: 2787.917139 | I22: 2982.965859 | J22: 3185.037894 | K22: 3305.240352 | L22: 3447.308869 | M22: 3733.75439 | N22: 3816.522333 | O22: 4119.770437 | P22: 4274.124059 | Q22: 4319.548115 | R22: 4605.035378 | S22: 4755.760487 | T22: 4940.758903 | U22: 5055.719657 | V22: 5019.761701 | W22: 5127.033342
A23: Transport Emissions | B23: Road – Gas (CNG) | C23: 173.2036407 | D23: 174.0399562 | E23: 160.6405249 | F23: 147.9836678 | G23: 119.0004162 | H23: 92.02339564 | I23: 68.40527693 | J23: 48.92779588 | K23: 32.80851342 | L23: 11.84166538 | M23: 0.8051797306 | N23: 1.059321552 | O23: 1.260017462 | P23: 1.231412508 | Q23: 1.152675936 | R23: 0.9928370676 | S23: 1.018708009 | T23: 1.340225755 | U23: 1.924617718 | V23: 2.050086944 | W23: 1.611050639
A24: Transport Emissions | B24: Road – LPG | C24: 237.9906439 | D24: 260.7980928 | E24: 238.0574268 | F24: 239.2286127 | G24: 248.8892746 | H24: 212.8882671 | I24: 120.7223592 | J24: 86.19453245 | K24: 82.7996832 | L24: 56.98240634 | M24: 54.70048746 | N24: 58.97243873 | O24: 83.82332916 | P24: 69.53579617 | Q24: 78.18916479 | R24: 81.12730039 | S24: 92.09346769 | T24: 102.7962679 | U24: 108.7944553 | V24: 88.08869838 | W24: 71.71443443
A25: Transport Emissions | B25: Rail | C25: 86.16958851 | D25: 110.4600592 | E25: 135.9042125 | F25: 144.6362319 | G25: 151.1628418 | H25: 162.8835842 | I25: 160.711256 | J25: 168.0985985 | K25: 162.0830266 | L25: 186.2277707 | M25: 253.6876592 | N25: 201.5876658 | O25: 169.6775311 | P25: 177.0895991 | Q25: 182.5169533 | R25: 160.8933036 | S25: 164.731103 | T25: 167.7505984 | U25: 163.1317899 | V25: 166.0470069 | W25: 147.765666
A26: Transport Emissions | B26: Sea | C26: 248.8836728 | D26: 251.9167314 | E26: 289.6074942 | F26: 278.4679964 | G26: 357.3823715 | H26: 332.1423178 | I26: 282.1307628 | J26: 204.2809489 | K26: 142.479172 | L26: 215.117724 | M26: 379.8916391 | N26: 346.3128318 | O26: 395.8881798 | P26: 404.4125472 | Q26: 363.6484914 | R26: 425.34248 | S26: 334.5978061 | T26: 358.9538798 | U26: 253.2714375 | V26: 299.9765857 | W26: 257.155303
A27: Transport Emissions | B27: Air | C27: 886.7238242 | D27: 775.7087675 | E27: 753.0840315 | F27: 886.2514401 | G27: 1048.642655 | H27: 1071.062816 | I27: 1066.208913 | J27: 1019.291789 | K27: 1057.324892 | L27: 985.0825883 | M27: 1086.599111 | N27: 1115.247022 | O27: 1043.336803 | P27: 1173.786103 | Q27: 1208.486371 | R27: 1110.890592 | S27: 1131.444755 | T27: 925.8823927 | U27: 1026.315023 | V27: 929.6353854 | W27: 993.7296643
A28: Electricity Emissions - Combustion Only | B28: Total | C28: =SUM(C29:C32) -> 3467.929909 | D28: =SUM(D29:D32) -> 3897.038371 | E28: =SUM(E29:E32) -> 4997.758234 | F28: =SUM(F29:F32) -> 4111.040531 | G28: =SUM(G29:G32) -> 3284.3455 | H28: =SUM(H29:H32) -> 3009.301176 | I28: =SUM(I29:I32) -> 3944.866913 | J28: =SUM(J29:J32) -> 5943.344459 | K28: =SUM(K29:K32) -> 4429.658018 | L28: =SUM(L29:L32) -> 5697.593814 | M28: =SUM(M29:M32) -> 5382.628299 | N28: =SUM(N29:N32) -> 6843.185983 | O28: =SUM(O29:O32) -> 6126.836824 | P28: =SUM(P29:P32) -> 7439.795506 | Q28: =SUM(Q29:Q32) -> 7043.001233 | R28: =SUM(R29:R32) -> 9036.269589 | S28: =SUM(S29:S32) -> 8867.11364 | T28: =SUM(T29:T32) -> 7539.717492 | U28: =SUM(U29:U32) -> 8538.243245 | V28: =SUM(V29:V32) -> 6254.258532 | W28: =SUM(W29:W32) -> 5374.884516
A29: Electricity Emissions - Combustion Only | B29: Coal | C29: 467.7875218 | D29: 217.8088871 | E29: 869.8679553 | F29: 424.5962267 | G29: 370.2641996 | H29: 542.8616016 | I29: 594.8139988 | J29: 1159.305367 | K29: 742.0310297 | L29: 1079.29088 | M29: 870.4674476 | N29: 1332.761307 | O29: 1336.046817 | P29: 2923.077597 | Q29: 3826.459797 | R29: 4847.357837 | S29: 4581.645214 | T29: 2342.43534 | U29: 3872.461169 | V29: 2466.423806 | W29: 1227.630896
A30: Electricity Emissions - Combustion Only | B30: LiquidFuels | C30: 10.47963883 | D30: 22.44797905 | E30: 182.1436226 | F30: 55.26162857 | G30: 18.71603277 | H30: 44.77667938 | I30: 17.43119925 | J30: 0.07968622687 | K30: 2.827610742 | L30: 0.04468957447 | M30: 0.01415067065 | N30: 0 | O30: 0.003766566135 | P30: 17.49107054 | Q30: 20.92222559 | R30: 3.081410065 | S30: 16.03392568 | T30: 0.5047586631 | U30: 98.28892596 | V30: 6.86628516 | W30: 1.279562047
A31: Electricity Emissions - Combustion Only | B31: Gas | C31: 2989.450847 | D31: 3656.39302 | E31: 3945.322854 | F31: 3630.758874 | G31: 2894.941465 | H31: 2421.171965 | I31: 3332.047714 | J31: 4783.286432 | K31: 3684.239537 | L31: 4617.641402 | M31: 4511.536888 | N31: 5509.850215 | O31: 4790.25136 | P31: 4498.42064 | Q31: 3194.668874 | R31: 4184.919234 | S31: 4268.416368 | T31: 5195.739234 | U31: 4566.47979 | V31: 3779.909712 | W31: 4144.841807
A32: Electricity Emissions - Combustion Only | B32: Other | C32: 0.2119010777 | D32: 0.3884853092 | E32: 0.4238021555 | F32: 0.4238021555 | G32: 0.4238021555 | H32: 0.4909297553 | I32: 0.5740011199 | J32: 0.6729735958 | K32: 0.5598402588 | L32: 0.6168419899 | M32: 0.6098127432 | N32: 0.5744617744 | O32: 0.5348804189 | P32: 0.8061984394 | Q32: 0.9503363249 | R32: 0.9111077881 | S32: 1.018131831 | T32: 1.038159213 | U32: 1.013359749 | V32: 1.058729237 | W32: 1.132251592
A33: Transformation Sector Emissions | B33: Total | C33: 2493.908419 | D33: 2181.007793 | E33: 2557.035699 | F33: 2512.865874 | G33: 2234.169732 | H33: 1782.354496 | I33: 1563.18852 | J33: 1248.771193 | K33: 1197.141156 | L33: 1148.016114 | M33: 1142.892804 | N33: 1163.017245 | O33: 1191.8102 | P33: 1186.727304 | Q33: 1199.593658 | R33: 1245.514652 | S33: 1306.184806 | T33: 1256.175293 | U33: 1184.222861 | V33: 1246.405006 | W33: 1304.7475
A34: Manufacturing Sector Emissions | B34: Total | C34: =SUM(C35:C38) -> 4695.990862 | D34: =SUM(D35:D38) -> 5181.003589 | E34: =SUM(E35:E38) -> 5036.941666 | F34: =SUM(F35:F38) -> 5273.520977 | G34: =SUM(G35:G38) -> 5608.502676 | H34: =SUM(H35:H38) -> 5717.222068 | I34: =SUM(I35:I38) -> 6120.352078 | J34: =SUM(J35:J38) -> 6211.61483 | K34: =SUM(K35:K38) -> 5889.261553 | L34: =SUM(L35:L38) -> 5762.55364 | M34: =SUM(M35:M38) -> 6333.695517 | N34: =SUM(N35:N38) -> 6676.732825 | O34: =SUM(O35:O38) -> 6971.73004 | P34: =SUM(P35:P38) -> 6311.420025 | Q34: =SUM(Q35:Q38) -> 5792.475932 | R34: =SUM(R35:R38) -> 4948.601132 | S34: =SUM(S35:S38) -> 4894.646752 | T34: =SUM(T35:T38) -> 5322.004306 | U34: =SUM(U35:U38) -> 5348.164293 | V34: =SUM(V35:V38) -> 5004.070669 | W34: =SUM(W35:W38) -> 5031.12402
A35: Manufacturing Sector Emissions | B35: Coal | C35: 2173.459335 | D35: 2254.363215 | E35: 2063.370327 | F35: 2429.523823 | G35: 2306.408831 | H35: 2073.182259 | I35: 1994.573734 | J35: 1935.377378 | K35: 1853.228675 | L35: 1614.210379 | M35: 1629.148856 | N35: 2090.796014 | O35: 2130.991411 | P35: 2590.864634 | Q35: 1973.369317 | R35: 1812.688741 | S35: 1892.787142 | T35: 2125.679282 | U35: 2209.905025 | V35: 1788.531312 | W35: 1935.474298
A36: Manufacturing Sector Emissions | B36: LiquidFuels | C36: 856.0092952 | D36: 829.8777655 | E36: 1082.725 | F36: 826.4500148 | G36: 889.8044296 | H36: 926.8023048 | I36: 1010.601504 | J36: 1003.101639 | K36: 885.1668634 | L36: 820.1817826 | M36: 1055.63376 | N36: 1071.322406 | O36: 1157.336934 | P36: 1195.178295 | Q36: 1333.107324 | R36: 1370.029309 | S36: 1390.088944 | T36: 1483.55141 | U36: 1381.921476 | V36: 1251.647423 | W36: 1082.26814
A37: Manufacturing Sector Emissions | B37: Gas | C37: 1620.921852 | D37: 2050.128452 | E37: 1844.252105 | F37: 1967.768881 | G37: 2359.414271 | H37: 2662.532382 | I37: 3063.357986 | J37: 3218.314173 | K37: 3091.913045 | L37: 3261.525289 | M37: 3575.072359 | N37: 3441.785968 | O37: 3604.197644 | P37: 2445.793768 | Q37: 2399.574132 | R37: 1679.953693 | S37: 1526.592096 | T37: 1631.785124 | U37: 1681.769449 | V37: 1895.821434 | W37: 1936.585265
A38: Manufacturing Sector Emissions | B38: Other | C38: 45.60038058 | D38: 46.63415635 | E38: 46.59423417 | F38: 49.77825828 | G38: 52.87514474 | H38: 54.70512273 | I38: 51.81885353 | J38: 54.82164008 | K38: 58.95296927 | L38: 66.63618878 | M38: 73.84054148 | N38: 72.82843743 | O38: 79.20405071 | P38: 79.58332744 | Q38: 86.42515838 | R38: 85.9293891 | S38: 85.17857032 | T38: 80.98848945 | U38: 74.56834217 | V38: 68.07050084 | W38: 76.79631675
A39: Fugitive Emissions | B39: Total | C39: =SUM(C40:C41) -> 1276.592727 | D39: =SUM(D40:D41) -> 1295.250582 | E39: =SUM(E40:E41) -> 1308.648859 | F39: =SUM(F40:F41) -> 1263.980016 | G39: =SUM(G40:G41) -> 1281.699905 | H39: =SUM(H40:H41) -> 1255.847167 | I39: =SUM(I40:I41) -> 1628.250615 | J39: =SUM(J40:J41) -> 1639.140952 | K39: =SUM(K40:K41) -> 1596.403573 | L39: =SUM(L40:L41) -> 1620.603179 | M39: =SUM(M40:M41) -> 1609.08 | N39: =SUM(N40:N41) -> 1681.311758 | O39: =SUM(O40:O41) -> 1615.886518 | P39: =SUM(P40:P41) -> 1487.257425 | Q39: =SUM(Q40:Q41) -> 1649.200228 | R39: =SUM(R40:R41) -> 1716.853363 | S39: =SUM(S40:S41) -> 1860.519629 | T39: =SUM(T40:T41) -> 1842.328628 | U39: =SUM(U40:U41) -> 2137.951502 | V39: =SUM(V40:V41) -> 2363.333229 | W39: =SUM(W40:W41) -> 2565.588874
A40: Fugitive Emissions | B40: Geothermal (Electricity) | C40: 274.600978 | D40: 282.85148 | E40: 284.71474 | F40: 300.48266 | G40: 293.37514 | H40: 286.33748 | I40: 395.2128 | J40: 339.4346 | K40: 426.2635573 | L40: 395.5016554 | M40: 413.7437359 | N40: 326.2125844 | O40: 374.1357839 | P40: 330.3995703 | Q40: 335.4102278 | R40: 320.8090981 | S40: 365.4092491 | T40: 332.1447695 | U40: 515.3783102 | V40: 723.2358409 | W40: 757.4149137
A41: Fugitive Emissions | B41: Other | C41: 1001.991749 | D41: 1012.399102 | E41: 1023.934119 | F41: 963.4973562 | G41: 988.3247645 | H41: 969.509687 | I41: 1233.037815 | J41: 1299.706352 | K41: 1170.140015 | L41: 1225.101523 | M41: 1195.336265 | N41: 1355.099173 | O41: 1241.750735 | P41: 1156.857855 | Q41: 1313.79 | R41: 1396.044265 | S41: 1495.11038 | T41: 1510.183859 | U41: 1622.573192 | V41: 1640.097389 | W41: 1808.17396

Sheet Fuel
A1: Fuel | B1: 1990 | C1: 1991 | D1: 1992 | E1: 1993 | F1: 1994 | G1: 1995 | H1: 1996 | I1: 1997 | J1: 1998 | K1: 1999 | L1: 2000 | M1: 2001 | N1: 2002 | O1: 2003 | P1: 2004 | Q1: 2005 | R1: 2006 | S1: 2007 | T1: 2008 | U1: 2009 | V1: 2010
A2: Total | B2: =SUM(B3:B7) -> 23458.4341 | C2: =SUM(C3:C7) -> 23894.32634 | D2: =SUM(D3:D7) -> 25775.18176 | E2: =SUM(E3:E7) -> 25192.87892 | F2: =SUM(F3:F7) -> 25454.07673 | G2: =SUM(G3:G7) -> 25562.50019 | H2: =SUM(H3:H7) -> 27064.213 | I2: =SUM(I3:I7) -> 29107.68195 | J2: =SUM(J3:J7) -> 27465.25388 | K2: =SUM(K3:K7) -> 28928.38952 | L2: =SUM(L3:L7) -> 29778.1019 | M2: =SUM(M3:M7) -> 31796.9557 | N2: =SUM(N3:N7) -> 31922.6287 | O2: =SUM(O3:O7) -> 33266.24636 | P2: =SUM(P3:P7) -> 32792.02081 | Q2: =SUM(Q3:Q7) -> 34179.63846 | R2: =SUM(R3:R7) -> 34190.88871 | S2: =SUM(S3:S7) -> 33255.30254 | T2: =SUM(T3:T7) -> 34380.1364 | U2: =SUM(U3:U7) -> 31594.79121 | V2: =SUM(V3:V7) -> 31107.82539
A3: Coal | B3: 3186.032979 | C3: 2912.949109 | D3: 3253.209274 | E3: 3170.845735 | F3: 3023.910372 | G3: 3107.166223 | H3: 3006.695325 | I3: 3491.135809 | J3: 2963.426317 | K3: 3012.063328 | L3: 2835.156216 | M3: 3792.761576 | N3: 3826.237744 | O3: 5921.526824 | P3: 6161.543527 | Q3: 7032.044819 | R3: 6883.359027 | S3: 4852.308546 | T3: 6492.305744 | U3: 4533.251229 | V3: 3522.181442
A4: LiquidFuels | B4: 11865.68505 | C4: 11753.08779 | D4: 12805.65304 | E4: 12640.5746 | F4: 13589.53748 | G4: 14265.42547 | H4: 14415.92469 | I4: 14722.47151 | J4: 14962.05352 | K4: 15247.94914 | L4: 15924.05691 | M4: 16046.7803 | N4: 16763.4831 | O4: 17595.42309 | P4: 17958.87571 | Q4: 18104.9875 | R4: 18221.85815 | S4: 18398.7142 | T4: 18256.8939 | U4: 17597.85131 | V4: 17552.35065
A5: Gas | B5: 7026.48859 | C5: 7828.184743 | D5: 8302.82005 | E5: 8009.445004 | F5: 7447.798529 | G5: 6821.032372 | H5: 7902.082202 | I5: 9140.836948 | J5: 7825.487127 | K5: 8922.463682 | L5: 9277.560463 | M5: 10145.30447 | N5: 9580.218766 | O5: 8124.754917 | P5: 6878.237512 | Q5: 7182.192011 | R5: 7082.538874 | S5: 8023.845218 | T5: 7361.754958 | U5: 6976.289071 | V5: 7335.639196
A6: Other | B6: 103.6347499 | C6: 104.8541206 | D6: 104.8505321 | E6: 108.0335595 | F6: 111.130446 | G6: 113.0289538 | H6: 111.2601578 | I6: 114.0967346 | J6: 117.8833407 | K6: 125.3101825 | L6: 132.2483165 | M6: 130.7975875 | N6: 136.8025699 | O6: 137.2841056 | P6: 144.1638368 | Q6: 143.5607685 | R6: 142.6130362 | S6: 138.1059535 | T6: 131.230295 | U6: 124.0663732 | V6: 132.0652237
A7: Fugitive | B7: 1276.592727 | C7: 1295.250582 | D7: 1308.648859 | E7: 1263.980016 | F7: 1281.699905 | G7: 1255.847167 | H7: 1628.250615 | I7: 1639.140952 | J7: 1596.403573 | K7: 1620.603179 | L7: 1609.08 | M7: 1681.311758 | N7: 1615.886518 | O7: 1487.257425 | P7: 1649.200228 | Q7: 1716.853363 | R7: 1860.519629 | S7: 1842.328628 | T7: 2137.951502 | U7: 2363.333229 | V7: 2565.588874
